bitfinex/quotes_BTCUSD_20250618
["timestamp","ask_amount","ask_price","bid_price","bid_amount"]
[1750232457694,0.39823045,105080.0,105070.0,0.59730235]
[1750232457898,0.61139994,105080.0,105070.0,0.64726376]
[1750232458179,0.61139994,105080.0,105070.0,0.66629769]
[1750232458533,0.61139994,105080.0,105070.0,0.66229769]
[1750232458923,0.42106877,105080.0,105070.0,0.67181452]
[1750232459125,0.42106877,105080.0,105070.0,0.66281452]
[1750232459543,0.42106877,105080.0,105070.0,0.66581452]
[1750232459752,0.42106877,105080.0,105070.0,0.66281452]
[1750232460166,0.42106877,105080.0,105070.0,0.66581452]
[1750232461609,0.39823045,105080.0,105070.0,0.66581452]
[1750232462785,0.0580483,105080.0,105070.0,0.66581452]
[1750232466922,0.04853193,105080.0,105070.0,0.66581452]
[1750232467136,0.05804821,105080.0,105070.0,0.66581452]
[1750232467815,5.47976619,105090.0,105080.0,0.21887974]
[1750232468062,0.3628609,105090.0,105080.0,0.21887974]
[1750232468308,0.35907984,105090.0,105080.0,0.32966235]
[1750232468697,0.35907975,105090.0,105080.0,0.32966235]
[1750232468948,0.34005,105090.0,105080.0,0.34866235]
[1750232469169,0.34956492,105090.0,105080.0,0.36786235]
[1750232469610,0.34956492,105090.0,105080.0,0.33066235]
[1750232469830,0.35908002,105090.0,105080.0,0.33066235]
[1750232470271,0.34956492,105090.0,105080.0,0.33066235]
[1750232470721,0.34956492,105090.0,105080.0,0.34956235]
[1750232472093,5e-05,105090.0,105080.0,0.34956235]
[1750232472316,5e-05,105090.0,105080.0,0.36776235]
[1750232472534,5e-05,105090.0,105080.0,0.56384235]
[1750232477281,5e-05,105090.0,105080.0,0.71384235]
[1750232479128,5e-05,105090.0,105080.0,0.71284235]
[1750232479332,5e-05,105090.0,105080.0,0.71584235]
[1750232486752,5e-05,105090.0,105080.0,0.71580235]
[1750232493299,0.39249889,105100.0,105090.0,0.25209977]
[1750232493300,0.3647424,105100.0,105090.0,0.25209977]
[1750232493538,0.35522829,105100.0,105090.0,0.38874153]
[1750232493965,0.40657974,105100.0,105090.0,0.38874153]
[1750232494196,0.39706527,105100.0,105090.0,0.38874153]
[1750232494989,0.39706527,105100.0,105090.0,0.38974153]
[1750232495503,0.40657965,105100.0,105090.0,0.38974153]
[1750232495731,0.39706527,105100.0,105090.0,0.38974153]
[1750232496744,0.38755107,105100.0,105090.0,0.38974153]
[1750232498076,0.38755107,105100.0,105090.0,0.40804153]
[1750232501328,0.39706536,105100.0,105090.0,0.40804153]
[1750232501542,0.38755107,105100.0,105090.0,0.40804153]
[1750232502595,0.38755107,105100.0,105090.0,0.56364153]
[1750232503967,0.37803696,105100.0,105090.0,0.56364153]
[1750232504188,0.38755107,105100.0,105090.0,0.56364153]
[1750232505008,0.37803696,105100.0,105090.0,0.56364153]
[1750232505667,0.38755107,105100.0,105090.0,0.56364153]
[1750232506364,0.38755098,105100.0,105090.0,0.56364153]
[1750232506584,0.37803696,105100.0,105090.0,0.56364153]
[1750232507347,0.38755107,105100.0,105090.0,0.56364153]
[1750232507558,0.37803696,105100.0,105090.0,0.56364153]
[1750232507756,0.38755107,105100.0,105090.0,0.56364153]
[1750232509282,0.36852303,105100.0,105090.0,0.56364153]
[1750232509503,0.37803714,105100.0,105090.0,0.56364153]
[1750232510637,0.36852303,105100.0,105090.0,0.56364153]
[1750232514187,0.37803705,105100.0,105090.0,0.56364153]
[1750232518003,0.37803696,105100.0,105090.0,0.56364153]
[1750232518303,0.37803696,105100.0,105090.0,0.36764153]
[1750232518527,0.36852303,105100.0,105090.0,0.56360153]
[1750232518750,0.37803705,105100.0,105090.0,0.56360153]
[1750232520466,0.38755134,105100.0,105090.0,0.52660153]
[1750232520706,0.38755125,105100.0,105090.0,0.52660153]
[1750232521161,0.38755125,105100.0,105090.0,0.54610153]
[1750232522123,0.60666103,105100.0,105090.0,0.25074382]
[1750232522346,0.63343044,105100.0,105090.0,0.40630409]
[1750232522568,0.6905192,105100.0,105090.0,0.40630409]
[1750232523004,0.681005,105100.0,105090.0,0.40630409]
[1750232523503,0.65250124,105100.0,105090.0,0.40630409]
[1750232524357,0.65250124,105100.0,105090.0,0.41581947]
[1750232524581,0.65250124,105100.0,105090.0,0.42533476]
[1750232525231,0.63320124,105100.0,105090.0,0.43484996]
[1750232525458,0.64271598,105100.0,105090.0,0.43484996]
[1750232525664,0.64271598,105100.0,105090.0,0.42533476]
[1750232525878,0.64271598,105100.0,105090.0,0.43484996]
[1750232527515,0.63320169,105100.0,105090.0,0.42533476]
[1750232528202,0.44290674,105100.0,105090.0,0.4348495]
[1750232528438,0.60643228,105100.0,105090.0,0.4348495]
[1750232528685,0.62427098,105100.0,105090.0,0.4348495]
[1750232529154,0.63319045,105100.0,105090.0,0.4348495]
[1750232529637,0.63319045,105100.0,105090.0,0.2198592]
[1750232529860,0.63319045,105100.0,105090.0,0.4157792]
[1750232530303,0.60643228,105100.0,105090.0,0.4157792]
[1750232530768,0.615351,105100.0,105090.0,0.4157792]
[1750232530992,0.59691772,105100.0,105090.0,0.40626391]
[1750232531468,0.62367435,105100.0,105090.0,0.40626391]
[1750232531739,0.62367435,105100.0,105090.0,0.20082853]
[1750232532001,0.63395993,105100.0,105090.0,0.19692]
[1750232532243,0.66246369,105100.0,105090.0,0.19692]
[1750232532431,0.66246369,105100.0,105090.0,0.001]
[1750232532644,0.66246369,105100.0,105090.0,0.04132]
[1750232533733,11.0201582,105100.0,105090.0,0.001]
[1750232533948,10.93657238,105100.0,105090.0,0.001]
[1750232534166,10.97462583,105100.0,105090.0,0.001]
[1750232534390,10.97462237,105100.0,105090.0,0.001]
[1750232534609,10.96793714,105100.0,105090.0,0.001]
[1750232534824,10.96791981,105100.0,105090.0,0.001]
[1750232535512,10.97460472,105100.0,105090.0,0.001]
[1750232536847,11.07075394,105100.0,105090.0,0.001]
[1750232537247,11.06406903,105100.0,105090.0,0.001]
[1750232537461,11.03732941,105100.0,105090.0,0.001]
[1750232537702,11.06406037,105100.0,105090.0,0.001]
[1750232538355,10.96791115,105100.0,105090.0,0.001]
[1750232538789,10.97459401,105100.0,105090.0,0.001]
[1750232539041,11.07083577,105100.0,105090.0,0.001]
[1750232539279,11.04233201,105100.0,105090.0,0.001]
[1750232539493,11.07084071,105100.0,105090.0,0.001]
[1750232539712,11.13848123,105100.0,105090.0,0.001]
[1750232539928,11.13847909,105100.0,105090.0,0.001]
[1750232540820,0.19984754,105080.0,105070.0,0.0188]
[1750232541031,0.5493833,105070.0,105060.0,0.72283672]
[1750232541251,0.5493833,105070.0,105060.0,0.85958063]
[1750232541475,0.5493833,105070.0,105060.0,0.70406063]
[1750232541694,0.55890022,105070.0,105060.0,0.70406072]
[1750232541913,0.5782299,105070.0,105060.0,0.70406072]
[1750232542359,0.5782299,105070.0,105060.0,0.71357872]
[1750232542573,0.5782299,105070.0,105060.0,0.72309663]
[1750232543077,0.5782299,105070.0,105060.0,0.71357872]
[1750232544240,0.5782299,105070.0,105060.0,0.71957872]
[1750232544462,0.5782299,105070.0,105060.0,0.72157872]
[1750232544695,0.3973978,105070.0,105060.0,0.73461445]
[1750232544923,0.40691526,105070.0,105060.0,0.73661445]
[1750232545145,0.40691526,105070.0,105060.0,0.73761445]
[1750232546249,0.59726455,105070.0,105060.0,0.72809663]
[1750232546714,0.59726455,105070.0,105060.0,0.66136225]
[1750232546936,0.59726455,105070.0,105060.0,0.81688225]
[1750232548214,0.59726455,105070.0,105060.0,0.80736443]
[1750232548953,0.57823044,105070.0,105060.0,0.79784652]
[1750232549541,0.57823044,105070.0,105060.0,0.79684652]
[1750232549736,0.57823044,105070.0,105060.0,0.77781043]
[1750232549943,0.56871307,105070.0,105060.0,0.57792476]
[1750232550159,0.56871307,105070.0,105060.0,0.58744313]
[1750232550365,0.56871307,105070.0,105060.0,0.56424313]
[1750232550623,0.55919561,105070.0,105060.0,0.19038476]
[1750232550830,0.55919561,105070.0,105060.0,0.19238476]
[1750232551674,0.55919561,105070.0,105060.0,0.04124215]
[1750232551886,10.85650885,105070.0,105060.0,0.04250215]
[1750232552521,10.90281936,105070.0,105060.0,0.04250215]
[1750232552733,10.88501441,105070.0,105060.0,0.04250215]
[1750232552956,10.88491378,105070.0,105060.0,0.04250215]
[1750232553159,10.86710885,105070.0,105060.0,0.04250215]
[1750232554701,10.96325807,105070.0,105060.0,0.00214215]
[1750232554909,10.95265807,105070.0,105060.0,0.00214215]
[1750232558553,10.85650885,105070.0,105060.0,0.00214215]
[1750232560449,10.83750885,105070.0,105060.0,0.00214215]
[1750232562690,10.86610485,105070.0,105060.0,0.00214215]
[1750232563536,10.89461041,105070.0,105060.0,0.00214215]
[1750232568911,10.73909041,105070.0,105060.0,0.02054215]
[1750232569160,10.52606485,105070.0,105060.0,0.02054215]
[1750232571100,10.86606485,105070.0,105060.0,0.04024215]
[1750232571305,10.87497389,105070.0,105060.0,0.04024215]
[1750232571726,10.86606485,105070.0,105060.0,0.04024215]
[1750232572139,10.87497388,105070.0,105060.0,0.04024215]
[1750232574397,10.87497534,105070.0,105060.0,0.04024215]
[1750232579163,10.9034809,105070.0,105060.0,0.04024215]
[1750232579603,10.94153435,105070.0,105060.0,0.04024215]
[1750232581371,10.94822782,105070.0,105060.0,0.04024215]
[1750232581642,10.93931733,105070.0,105060.0,0.04024215]
[1750232581868,11.02659154,105070.0,105060.0,0.02054215]
[1750232582084,10.63988558,105060.0,105050.0,0.02662215]
[1750232582312,10.85340686,105060.0,105050.0,0.02662215]
[1750232582755,10.88200586,105060.0,105050.0,0.02662215]
[1750232582987,10.97146198,105060.0,105050.0,0.02662215]
[1750232583201,10.97146198,105060.0,105050.0,0.04512215]
[1750232583416,10.97814926,105060.0,105050.0,0.04512215]
[1750232585445,10.97146198,105060.0,105050.0,0.0353]
[1750232589799,10.97150198,105060.0,105050.0,0.0353]
[1750232590004,10.87535276,105060.0,105050.0,0.0353]
[1750232592093,10.91340621,105060.0,105050.0,0.0353]
[1750232595638,0.53990462,105050.0,105040.0,0.0342]
[1750232595851,10.81813786,105050.0,105040.0,0.0342]
[1750232596059,10.94284202,105050.0,105040.0,0.0342]
[1750232597150,10.94284202,105050.0,105040.0,0.0352]
[1750232598719,10.91428708,105050.0,105040.0,0.0342]
[1750232598926,10.94284202,105050.0,105040.0,0.0342]
[1750232600431,10.8466928,105050.0,105040.0,0.0342]
[1750232600891,10.82765686,105050.0,105040.0,0.0342]
[1750232602683,10.82765686,105050.0,105040.0,0.04372018]
[1750232602903,10.67221686,105050.0,105040.0,0.24364392]
[1750232603091,10.66269786,105050.0,105040.0,0.04372018]
[1750232604913,5.63173595,105050.0,105040.0,0.24364383]
[1750232605139,5.63173595,105050.0,105040.0,0.25316374]
[1750232605380,5.63173595,105050.0,105040.0,0.26268356]
[1750232607358,5.63173595,105050.0,105040.0,0.27220273]
[1750232608555,5.4413497,105050.0,105040.0,0.38298488]
[1750232608784,5.43183061,105050.0,105040.0,0.38298488]
[1750232608995,5.43183052,105050.0,105040.0,0.38298488]
[1750232609438,5.44134934,105050.0,105040.0,0.38298488]
[1750232609866,5.43183052,105050.0,105040.0,0.38298488]
[1750232610100,5.44134943,105050.0,105040.0,0.38398488]
[1750232610759,5.45086843,105050.0,105040.0,0.38398488]
[1750232611006,5.46038752,105050.0,105040.0,0.38398488]
[1750232611434,5.46038752,105050.0,105040.0,0.42426488]
[1750232612079,5.48898552,105050.0,105040.0,0.42426488]
[1750232613667,5.48898615,105050.0,105040.0,0.42426488]
[1750232614341,5.67937168,105050.0,105040.0,0.37666626]
[1750232614563,5.44135051,105050.0,105040.0,0.39570626]
[1750232614779,5.45086978,105050.0,105040.0,0.41474543]
[1750232615012,5.64125531,105050.0,105040.0,0.40522589]
[1750232617473,5.62221722,105050.0,105040.0,0.39570626]
[1750232617665,5.62221722,105050.0,105040.0,0.38618635]
[1750232617666,5.61269804,105050.0,105040.0,0.38618635]
[1750232618070,5.60317877,105050.0,105040.0,0.19578279]
[1750232618272,5.26317877,105050.0,105040.0,0.19578279]
[1750232618680,5.29177577,105050.0,105040.0,0.39570644]
[1750232621407,5.29177577,105050.0,105040.0,0.38618644]
[1750232622063,5.29177577,105050.0,105040.0,0.39570653]
[1750232622703,5.63177577,105050.0,105040.0,0.19578279]
[1750232623800,5.63177577,105050.0,105040.0,0.18626261]
[1750232624473,5.63177577,105050.0,105040.0,0.07548]
[1750232632599,5.78713577,105050.0,105040.0,0.07548]
[1750232634314,5.63177577,105050.0,105040.0,0.07548]
[1750232634515,5.88328499,105050.0,105040.0,0.07544]
[1750232634713,5.91183993,105050.0,105040.0,0.07544]
[1750232635191,5.91183993,105050.0,105040.0,0.0352]
[1750232635647,10.98083993,105050.0,105040.0,0.001]
[1750232635887,10.63992365,105040.0,105030.0,0.0001]
[1750232636131,10.86560617,105040.0,105030.0,0.0001]
[1750232636594,10.96027164,105040.0,105030.0,0.0001]
[1750232636820,11.0565134,105040.0,105030.0,0.0001]
[1750232637247,10.96184793,105040.0,105030.0,0.0001]
[1750232637474,10.96184793,105040.0,105030.0,0.0011]
[1750232639399,10.96852714,105040.0,105030.0,0.0011]
[1750232639500,10.63994268,105030.0,105020.0,0.05834]
[1750232639723,10.86468897,105030.0,105020.0,0.04024]
[1750232639943,5.24996172,105020.0,105010.0,0.1139522]
[1750232640164,5.42811496,105020.0,105010.0,0.1139522]
[1750232640384,5.5109489,105020.0,105010.0,0.1139522]
[1750232640629,10.57716612,105020.0,105010.0,0.1139522]
[1750232640870,5.44433218,105020.0,105010.0,0.1144263]
[1750232641553,5.44433218,105020.0,105010.0,0.0381741]
[1750232642010,10.49433218,105020.0,105010.0,0.0381741]
[1750232643327,10.47153894,105020.0,105010.0,0.0381741]
[1750232643762,10.38524638,105020.0,105010.0,0.0381741]
[1750232645071,10.38524638,105020.0,105010.0,0.23815505]
[1750232645287,10.31617894,105020.0,105010.0,0.23815505]
[1750232646022,10.34478794,105020.0,105010.0,0.23815505]
[1750232646240,10.34478794,105020.0,105010.0,0.25720058]
[1750232646909,10.34478794,105020.0,105010.0,0.24767786]
[1750232648328,10.34478794,105020.0,105010.0,0.25720058]
[1750232648562,10.34478794,105020.0,105010.0,0.24767786]
[1750232649002,10.34478794,105020.0,105010.0,0.25720049]
[1750232650346,0.06386903,105020.0,105010.0,0.27624528]
[1750232650574,0.06386903,105020.0,105010.0,0.29078613]
[1750232650794,0.06386894,105020.0,105010.0,0.29078613]
[1750232651019,0.05434749,105020.0,105010.0,0.29078613]
[1750232651234,0.03525994,105020.0,105010.0,0.29078613]
[1750232651455,0.04478157,105020.0,105010.0,0.29078613]
[1750232652760,0.08290938,105020.0,105010.0,0.33102613]
[1750232652975,0.07338757,105020.0,105010.0,0.33102613]
[1750232653185,0.08290938,105020.0,105010.0,0.33102613]
[1750232653622,0.09243128,105020.0,105010.0,0.33102613]
[1750232653897,0.08290938,105020.0,105010.0,0.33102613]
[1750232654601,0.08290929,105020.0,105010.0,0.33102613]
[1750232654805,0.06386594,105020.0,105010.0,0.48634613]
[1750232655070,0.07338757,105020.0,105010.0,0.48634613]
[1750232656087,0.08290938,105020.0,105010.0,0.48634613]
[1750232656702,0.09243128,105020.0,105010.0,0.48634613]
[1750232657336,0.28287191,105020.0,105010.0,0.48634613]
[1750232657744,0.28287191,105020.0,105010.0,0.48634631]
[1750232658149,0.28287191,105020.0,105010.0,0.48630631]
[1750232658345,0.28287191,105020.0,105010.0,0.48630576]
[1750232658596,0.092432,105020.0,105010.0,0.48630521]
[1750232658791,0.092432,105020.0,105010.0,0.47678295]
[1750232659176,0.0733882,105020.0,105010.0,0.48630521]
[1750232659575,0.0733882,105020.0,105010.0,0.47678295]
[1750232659701,0.26382811,105020.0,105010.0,0.47678295]
[1750232660109,0.0733882,105020.0,105010.0,0.47678295]
[1750232660358,0.08291019,105020.0,105010.0,0.47678295]
[1750232660559,0.2733501,105020.0,105010.0,0.47678295]
[1750232660734,0.26382865,105020.0,105010.0,0.4672606]
[1750232661948,0.26382865,105020.0,105010.0,0.47678295]
[1750232663036,0.26382865,105020.0,105010.0,0.4672606]
[1750232664088,0.06386621,105020.0,105010.0,0.47678286]
[1750232664302,0.07338802,105020.0,105010.0,0.47678286]
[1750232664521,0.08290992,105020.0,105010.0,0.47678286]
[1750232664728,0.09243191,105020.0,105010.0,0.47678286]
[1750232665547,0.09243191,105020.0,105010.0,0.4672606]
[1750232665763,0.08291055,105020.0,105010.0,0.4672606]
[1750232665965,0.08291055,105020.0,105010.0,0.47678295]
[1750232666196,0.08291055,105020.0,105010.0,0.48630521]
[1750232666407,0.26382847,105020.0,105010.0,0.29078521]
[1750232666624,0.07338856,105020.0,105010.0,0.48630521]
[1750232667666,0.08291055,105020.0,105010.0,0.48630521]
[1750232668290,0.07338856,105020.0,105010.0,0.48630521]
[1750232668531,0.06386666,105020.0,105010.0,0.48630521]
[1750232671652,0.07338856,105020.0,105010.0,0.48630521]
[1750232673478,0.07338802,105020.0,105010.0,0.48630521]
[1750232674844,0.06386621,105020.0,105010.0,0.48630521]
[1750232676267,0.07338802,105020.0,105010.0,0.48630521]
[1750232676799,0.06386621,105020.0,105010.0,0.48630521]
[1750232677016,0.07338793,105020.0,105010.0,0.48630521]
[1750232678555,0.06386621,105020.0,105010.0,0.48630521]
[1750232678779,0.06386612,105020.0,105010.0,0.48630521]
[1750232679485,0.01621722,105020.0,105010.0,0.58254697]
[1750232679705,0.00952027,105030.0,105020.0,0.27174565]
[1750232679927,0.34952027,105030.0,105020.0,0.27174565]
[1750232680161,0.38179771,105030.0,105020.0,0.27174565]
[1750232680387,0.37227726,105030.0,105020.0,0.27174565]
[1750232680599,0.38179762,105030.0,105020.0,0.27174565]
[1750232680834,0.02275699,105030.0,105020.0,0.36798741]
[1750232681067,5.46998032,105040.0,105030.0,0.25918394]
[1750232681283,5.46998032,105040.0,105030.0,0.31392479]
[1750232681284,5.46046032,105040.0,105030.0,0.31392479]
[1750232681502,5.44137823,105040.0,105030.0,0.31392479]
[1750232681739,5.46997923,105040.0,105030.0,0.46920479]
[1750232681956,5.46045932,105040.0,105030.0,0.46920479]
[1750232682175,0.40093951,105040.0,105030.0,0.46920479]
[1750232682388,0.41997859,105040.0,105030.0,0.46920479]
[1750232682605,0.41997859,105040.0,105030.0,0.27372479]
[1750232682836,0.41997859,105040.0,105030.0,0.46920479]
[1750232683045,0.40600522,105040.0,105030.0,0.46920479]
[1750232684316,0.41552504,105040.0,105030.0,0.46920479]
[1750232684997,0.40600522,105040.0,105030.0,0.46920479]
[1750232685224,0.37366644,105040.0,105030.0,0.46920479]
[1750232685703,0.38318607,105040.0,105030.0,0.46920479]
[1750232685705,0.37366644,105040.0,105030.0,0.46920479]
[1750232686502,0.38318607,105040.0,105030.0,0.46920479]
[1750232687555,0.04318607,105040.0,105030.0,0.46920479]
[1750232688896,0.05270589,105040.0,105030.0,0.46920479]
[1750232689377,0.04318607,105040.0,105030.0,0.46920479]
[1750232689609,0.05270589,105040.0,105030.0,0.46920479]
[1750232690763,0.40222589,105040.0,105030.0,0.31392479]
[1750232691009,0.39270589,105040.0,105030.0,0.46916479]
[1750232691228,0.40222589,105040.0,105030.0,0.46916479]
[1750232691460,0.4022258,105040.0,105030.0,0.46916479]
[1750232691881,0.39270589,105040.0,105030.0,0.46916479]
[1750232692036,0.40222589,105040.0,105030.0,0.46916479]
[1750232694856,0.40222589,105040.0,105030.0,0.31392479]
[1750232695066,0.39270589,105040.0,105030.0,0.31392479]
[1750232695299,0.40222589,105040.0,105030.0,0.31392479]
[1750232696533,0.40222589,105040.0,105030.0,0.31388479]
[1750232696893,0.40222671,105040.0,105030.0,0.31388497]
[1750232697135,0.40222671,105040.0,105030.0,0.32340551]
[1750232698079,0.40222671,105040.0,105030.0,0.33292596]
[1750232698366,0.39270653,105040.0,105030.0,0.33292596]
[1750232699174,0.38318653,105040.0,105030.0,0.33292596]
[1750232700399,0.3736668,105040.0,105030.0,0.33292596]
[1750232701112,0.37366671,105040.0,105030.0,0.33292596]
[1750232701536,0.38318643,105040.0,105030.0,0.33292596]
[1750232701751,0.39270634,105040.0,105030.0,0.33292596]
[1750232702688,0.40222634,105040.0,105030.0,0.33292596]
[1750232704033,0.40222698,105040.0,105030.0,0.33292596]
[1750232704462,0.38318689,105040.0,105030.0,0.33292596]
[1750232704888,0.39270689,105040.0,105030.0,0.33292596]
[1750232705301,0.38318689,105040.0,105030.0,0.33292596]
[1750232705734,0.38318635,105040.0,105030.0,0.33292596]
[1750232706208,0.39270635,105040.0,105030.0,0.33292596]
[1750232706875,0.40222644,105040.0,105030.0,0.33292596]
[1750232708402,0.42505817,105040.0,105030.0,0.33292596]
[1750232714878,0.41553808,105040.0,105030.0,0.33292596]
[1750232715062,0.40601808,105040.0,105030.0,0.33292596]
[1750232716003,0.41553808,105040.0,105030.0,0.33292596]
[1750232716430,0.40601808,105040.0,105030.0,0.33292596]
[1750232716646,0.41553799,105040.0,105030.0,0.33292596]
[1750232716853,0.40601808,105040.0,105030.0,0.33292596]
[1750232717060,0.39649826,105040.0,105030.0,0.33292596]
[1750232717488,0.40601808,105040.0,105030.0,0.33292596]
[1750232718198,0.40601798,105040.0,105030.0,0.33292596]
[1750232718412,0.41553789,105040.0,105030.0,0.33292596]
[1750232718619,0.42505789,105040.0,105030.0,0.33292596]
[1750232722322,0.41553789,105040.0,105030.0,0.33292596]
[1750232722961,0.40601798,105040.0,105030.0,0.33292596]
[1750232723726,0.39649826,105040.0,105030.0,0.33292596]
[1750232723942,0.40601798,105040.0,105030.0,0.33292596]
[1750232724365,0.40601789,105040.0,105030.0,0.33292596]
[1750232724826,0.4155378,105040.0,105030.0,0.33292596]
[1750232725696,0.4250578,105040.0,105030.0,0.33292596]
[1750232726549,0.4250578,105040.0,105030.0,0.48796596]
[1750232732255,0.40601789,105040.0,105030.0,0.48796596]
[1750232732485,0.41553771,105040.0,105030.0,0.48796596]
[1750232733866,0.41553761,105040.0,105030.0,0.48796596]
[1750232735195,0.03745936,105040.0,105030.0,0.48796596]
[1750232735416,0.01462763,105040.0,105030.0,0.58420772]
[1750232735870,5.46048095,105050.0,105040.0,0.27260395]
[1750232736060,5.46999986,105050.0,105040.0,0.27260395]
[1750232737427,5.44144367,105050.0,105040.0,0.27260395]
[1750232737646,5.46048104,105050.0,105040.0,0.27260395]
[1750232738573,5.47378705,105050.0,105040.0,0.27260395]
[1750232739284,5.47378696,105050.0,105040.0,0.27260395]
[1750232739499,5.48330578,105050.0,105040.0,0.27260395]
[1750232740066,5.49282469,105050.0,105040.0,0.27260395]
[1750232740828,5.48330578,105050.0,105040.0,0.27260395]
[1750232741039,5.45474968,105050.0,105040.0,0.36884571]
[1750232741199,5.43190701,105050.0,105040.0,0.36884571]
[1750232741910,5.40330601,105050.0,105040.0,0.36884571]
[1750232743012,5.41282465,105050.0,105040.0,0.36884571]
[1750232744237,5.41282456,105050.0,105040.0,0.36884571]
[1750232744422,5.42234338,105050.0,105040.0,0.36884571]
[1750232744570,5.42234329,105050.0,105040.0,0.36884571]
[1750232745658,5.4318622,105050.0,105040.0,0.36884571]
[1750232745867,5.42234329,105050.0,105040.0,0.36884571]
[1750232746607,5.43186211,105050.0,105040.0,0.36884571]
[1750232747334,5.42234329,105050.0,105040.0,0.36884571]
[1750232748027,5.4318622,105050.0,105040.0,0.36884571]
[1750232748230,5.42234329,105050.0,105040.0,0.36884571]
[1750232748439,5.4318622,105050.0,105040.0,0.36884571]
[1750232749000,5.42234329,105050.0,105040.0,0.36884571]
[1750232750189,5.41282456,105050.0,105040.0,0.36884571]
[1750232750801,5.41282447,105050.0,105040.0,0.36884571]
[1750232751000,5.40330601,105050.0,105040.0,0.36884571]
[1750232751412,5.41282456,105050.0,105040.0,0.36884571]
[1750232751602,5.43186211,105050.0,105040.0,0.36884571]
[1750232751791,5.43186202,105050.0,105040.0,0.36884571]
[1750232752247,5.4223432,105050.0,105040.0,0.36884571]
[1750232752601,5.43186202,105050.0,105040.0,0.36884571]
[1750232752847,5.4223432,105050.0,105040.0,0.36884571]
[1750232754050,5.4223432,105050.0,105040.0,0.40888571]
[1750232755616,5.43186202,105050.0,105040.0,0.40888571]
[1750232755997,5.4223432,105050.0,105040.0,0.40888571]
[1750232758985,5.43186193,105050.0,105040.0,0.40888571]
[1750232761317,5.44138084,105050.0,105040.0,0.40888571]
[1750232761503,5.43186193,105050.0,105040.0,0.40888571]
[1750232762050,5.44138084,105050.0,105040.0,0.40888571]
[1750232762208,5.43186193,105050.0,105040.0,0.40888571]
[1750232762411,5.45089984,105050.0,105040.0,0.56388571]
[1750232762623,5.4642075,105050.0,105040.0,0.56388571]
[1750232762988,5.4737265,105050.0,105040.0,0.56388571]
[1750232763882,5.4642075,105050.0,105040.0,0.56388571]
[1750232765136,5.47372659,105050.0,105040.0,0.56388571]
[1750232765336,5.4642075,105050.0,105040.0,0.56388571]
[1750232765541,5.4737265,105050.0,105040.0,0.56388571]
[1750232765939,5.46420795,105050.0,105040.0,0.56388571]
[1750232766481,5.44517013,105050.0,105040.0,0.56388571]
[1750232766646,5.45468904,105050.0,105040.0,0.56388571]
[1750232767211,5.46420813,105050.0,105040.0,0.56388571]
[1750232767413,5.46420804,105050.0,105040.0,0.56388571]
[1750232768056,5.47372713,105050.0,105040.0,0.56388571]
[1750232770885,0.20945591,105040.0,105030.0,0.0408]
[1750232771075,0.36856171,105030.0,105020.0,0.66932624]
[1750232771293,0.37808243,105030.0,105020.0,0.97510904]
[1750232772397,0.36856153,105030.0,105020.0,0.78010904]
[1750232772601,0.37808234,105030.0,105020.0,0.97510904]
[1750232773261,0.38760324,105030.0,105020.0,0.97710904]
[1750232773470,0.56850475,105030.0,105020.0,0.80310605]
[1750232773675,0.56850475,105030.0,105020.0,0.95806605]
[1750232773676,0.55898421,105030.0,105020.0,0.95806605]
[1750232773881,0.55898421,105030.0,105020.0,0.96758759]
[1750232774090,0.58758621,105030.0,105020.0,0.96858759]
[1750232774984,5.63934468,105030.0,105020.0,0.05758085]
[1750232775198,5.66702218,105030.0,105020.0,0.04304]
[1750232775413,5.82198218,105030.0,105020.0,0.04304]
[1750232776053,5.79918378,105030.0,105020.0,0.04104]
[1750232776262,5.79918378,105030.0,105020.0,0.04004]
[1750232777552,5.78478378,105030.0,105020.0,0.04004]
[1750232777971,5.62982378,105030.0,105020.0,0.04004]
[1750232778381,5.78478378,105030.0,105020.0,0.04004]
[1750232779977,5.78478378,105030.0,105020.0,0.2400019]
[1750232780187,5.60902378,105030.0,105020.0,0.25904525]
[1750232780392,5.4281229,105030.0,105020.0,0.25904525]
[1750232780599,5.64710738,105030.0,105020.0,0.2685667]
[1750232781007,5.64710738,105030.0,105020.0,0.25904525]
[1750232781225,5.63758675,105030.0,105020.0,0.24952371]
[1750232781634,5.63758675,105030.0,105020.0,0.26856688]
[1750232783087,5.63758675,105030.0,105020.0,0.28816688]
[1750232783720,5.43764281,105030.0,105020.0,0.33202909]
[1750232784133,5.44716353,105030.0,105020.0,0.33202909]
[1750232784588,5.43764281,105030.0,105020.0,0.33202909]
[1750232784802,5.418602,105030.0,105020.0,0.33202909]
[1750232785012,0.028602,105030.0,105020.0,0.42827085]
[1750232786590,0.028602,105030.0,105020.0,0.38823085]
[1750232786811,0.03812236,105030.0,105020.0,0.58319085]
[1750232787254,0.03812227,105030.0,105020.0,0.58319085]
[1750232788148,0.04764272,105030.0,105020.0,0.58319085]
[1750232789096,0.05716326,105030.0,105020.0,0.58319085]
[1750232789559,0.03812227,105030.0,105020.0,0.58319085]
[1750232789908,0.05716326,105030.0,105020.0,0.58319085]
[1750232790312,0.05716317,105030.0,105020.0,0.58319085]
[1750232791118,0.0666838,105030.0,105020.0,0.58319085]
[1750232792250,0.07620461,105030.0,105020.0,0.58319085]
[1750232792490,0.06668434,105030.0,105020.0,0.58319085]
[1750232793100,0.05716353,105030.0,105020.0,0.58319085]
[1750232793333,0.06668425,105030.0,105020.0,0.58319085]
[1750232794574,0.07620515,105030.0,105020.0,0.42823085]
[1750232794801,0.07620515,105030.0,105020.0,0.58319085]
[1750232795007,0.07620506,105030.0,105020.0,0.58319085]
[1750232795808,0.07620506,105030.0,105020.0,0.38823085]
[1750232796042,0.07620506,105030.0,105020.0,0.58315085]
[1750232797776,0.04760306,105030.0,105020.0,0.58315085]
[1750232798184,0.0476036,105030.0,105020.0,0.58315085]
[1750232798624,0.23802538,105030.0,105020.0,0.26342456]
[1750232798757,0.22850529,105030.0,105020.0,0.4480661]
[1750232799518,0.22850529,105030.0,105020.0,0.4686661]
[1750232799854,0.20946376,105030.0,105020.0,0.41894456]
[1750232800157,0.20946376,105030.0,105020.0,0.42846628]
[1750232804262,0.20946376,105030.0,105020.0,0.45768791]
[1750232804466,0.20946376,105030.0,105020.0,0.46720945]
[1750232805489,0.01904198,105030.0,105020.0,0.48790882]
[1750232805697,0.01904153,105030.0,105020.0,0.48790882]
[1750232807148,0.0285618,105030.0,105020.0,0.48790882]
[1750232807365,0.01904099,105030.0,105020.0,0.48790882]
[1750232807564,0.00952036,105030.0,105020.0,0.48790882]
[1750232807775,0.01904099,105030.0,105020.0,0.48790882]
[1750232808378,0.02856189,105030.0,105020.0,0.48790882]
[1750232808994,0.0285618,105030.0,105020.0,0.48790882]
[1750232812424,0.02856171,105030.0,105020.0,0.48790882]
[1750232812658,0.01904099,105030.0,105020.0,0.48790882]
[1750232813869,0.0285618,105030.0,105020.0,0.48790882]
[1750232816410,0.0285618,105030.0,105020.0,0.29298882]
[1750232816644,0.0285618,105030.0,105020.0,0.48786882]
[1750232818635,0.0380827,105030.0,105020.0,0.48786882]